fUSD/lending_fUSD_20260203
["ID","MTS","AMOUNT","RATE_DAILY","PERIOD"]
[404413975,1770118245481,-742.13302844,0.00018,2]
[404413976,1770118245494,-1516.59381822,0.00018,2]
[404413978,1770118246615,-1.7e-07,0.00018,2]
[404413979,1770118246652,-5416286.16986645,0.00018,2]
[404413980,1770118246661,-2012146.2914186,0.00018,2]
[404413981,1770118247349,-1662.06554795,0.00018,2]
[404413982,1770118247360,-1123.53686878,0.00018,2]
[404413983,1770118248357,-2.54172375,0.00018,2]
[404413984,1770118251807,-469.67,0.00017178,2]
[404413985,1770118251819,-1233.94,0.00017325,2]
[404413986,1770118251829,-5880.72299561,0.00018,2]
[404413987,1770118251840,-3944.45113601,0.00018,2]
[404413989,1770118291421,500.0,7.582e-05,2]
[404413993,1770118860075,-727.26,0.000137,2]
[404413994,1770118860096,-263.0,0.000137,2]
[404413995,1770118860116,-500.0,0.000137,2]
[404413996,1770118860137,-300.0,0.00013707,2]
[404413997,1770118860158,-195.0,0.00013714,2]
[404413998,1770118860179,-500.0,0.00013728,2]
[404413999,1770118860200,-1200.0,0.00013755,2]
[404414000,1770118860221,-195.0,0.00013756,2]
[404414001,1770118860242,-5000.0,0.00013756,2]
[404414002,1770118860264,-2500.0,0.00013812,2]
[404414003,1770118860287,-500.0,0.00013829,2]
[404414004,1770118860309,-150.29328254,0.00013916,2]
[404414005,1770118860331,-600.0,0.00013924,2]
[404414006,1770118860352,-250.0,0.00013924,2]
[404414007,1770118860373,-195.0,0.00013951,2]
[404414008,1770118860394,-5000.0,0.00013951,2]
[404414009,1770118860417,-266.58524122,0.00013951,2]
[404414010,1770118860437,-1000.0,0.00014,2]
[404414011,1770118860457,-1000.0,0.000141,2]
[404414012,1770118860477,-178.00614472,0.00014148,2]
[404414013,1770118860498,-150.0,0.00014169,2]
[404414014,1770118860521,-2500.0,0.0001417,2]
[404414015,1770118860542,-2500.0,0.0001417,2]
[404414016,1770118860563,-2500.0,0.0001417,2]
[404414017,1770118860584,-1000.0,0.000142,2]
[404414018,1770118860605,-1000.0,0.00014228,2]
[404414019,1770118860625,-1001.21553048,0.00014248,2]
[404414020,1770118860647,-1000.0,0.000143,2]
[404414021,1770118860667,-1000.0,0.000144,2]
[404414022,1770118860688,-1000.0,0.000145,2]
[404414023,1770118860708,-828.63980104,0.000146,2]
[404414047,1770119324990,537.0,0.00023,120]
[404414055,1770119431940,-151.0,0.00011848,2]
[404414056,1770119431952,-156.587,0.00011848,2]
[404414057,1770119431961,-15.90210006,0.00011848,2]
[404414058,1770119431972,-146.47861894,0.00011848,2]
[404414059,1770119431982,-157.73690742,0.00011848,2]
[404414060,1770119431991,-247.0,0.00011848,2]
[404414061,1770119432001,-195.0,0.00012286,2]
[404414062,1770119432011,-250.0,0.00012724,2]
[404414063,1770119432020,-195.0,0.00012896,2]
[404414064,1770119432029,-208.78447364,0.00013033,2]
[404414070,1770119437852,-41.21552636,0.00013033,2]
[404414071,1770119437862,-195.0,0.00013033,2]
[404414072,1770119437871,-195.0,0.00013033,2]
[404414073,1770119437881,-195.0,0.00013033,2]
[404414074,1770119437890,-193.0,0.00013033,2]
[404414075,1770119437899,-500.0,0.00013033,2]
[404414076,1770119437908,-5000.0,0.00013033,2]
[404414077,1770119437917,-150.42894433,0.00013033,2]
[404414078,1770119437926,-250.0,0.00013276,2]
[404414079,1770119437935,-600.0,0.000136,4]
[404414080,1770119437944,-555.65652566,0.00013609,2]
[404414081,1770119437954,-151.0,0.00013609,2]
[404414082,1770119437963,-3500000.0,0.00013612,2]
[404414083,1770119437972,-4122.6247,0.00013612,2]
[404414084,1770119437981,-89306.5331,0.00013612,2]
[404414085,1770119437991,-2500.0,0.00013612,2]
[404414086,1770119438000,-555.65652564,0.00013644,2]
[404414087,1770119438010,-50996.65745634,0.00013655,2]
[404414088,1770119438019,-21260.72506415,0.00013655,2]
[404414089,1770119438029,-1223.52848547,0.00013655,2]
[404414090,1770119438038,-555.65652564,0.00013678,2]
[404414091,1770119438047,-1300.0,0.000137,5]
[404414092,1770119438056,-150.02324411,0.000137,2]
[404414093,1770119438066,-500.0,0.000137,2]
[404414094,1770119438075,-500.0,0.000137,2]
[404414095,1770119438084,-500.0,0.000137,2]
[404414096,1770119438094,-260.20893212,0.000137,2]
[404414097,1770119438103,-500.0,0.000137,2]
[404414098,1770119438113,-500.0,0.00013711,2]
[404414100,1770119438122,-500.0,0.00013711,2]
[404414102,1770119438131,-500.0,0.00013711,2]
[404414104,1770119438140,-500.0,0.00013711,2]
[404414106,1770119438149,-500.0,0.00013711,2]
[404414108,1770119438158,-500.0,0.00013711,2]
[404414110,1770119438167,-500.0,0.00013711,2]
[404414112,1770119438176,-500.0,0.00013711,2]
[404414115,1770119438185,-297.83243143,0.00013711,2]
[404414117,1770119438194,-500.0,0.00013711,2]
[404414119,1770119438203,-500.0,0.00013711,2]
[404414121,1770119438212,-500.0,0.00013711,2]
[404414123,1770119438222,-500.0,0.00013711,2]
[404414125,1770119438231,-500.0,0.00013711,2]
[404414127,1770119438241,-500.0,0.00013711,2]
[404414129,1770119438251,-500.0,0.00013711,2]
[404414131,1770119438259,-578.20924308,0.00013755,2]
[404414133,1770119438268,-174.61919141,0.00013755,2]
[404414135,1770119438278,-2000.0,0.000138,5]
[404414137,1770119438287,-2700.0,0.000139,5]
[404414139,1770119438296,-500.0,0.00014,2]
[404414141,1770119438305,-205.2,0.00014028,2]
[404414143,1770119438314,-200.0,0.00014087,2]
[404414145,1770119438323,-50996.65745629,0.00014116,2]
[404414147,1770119438331,-1000.0,0.000142,2]
[404414149,1770119438341,-150.99,0.00014216,2]
[404414151,1770119438351,-999.99,0.00014216,2]
[404414153,1770119438360,-9999.99,0.00014216,2]
[404414154,1770119438369,-9999.99,0.00014216,2]
[404414155,1770119438378,-1000.0,0.00014248,2]
[404414156,1770119438387,-1000.0,0.00014248,2]
[404414157,1770119438395,-500.0,0.00014248,2]
[404414158,1770119438405,-150.99,0.00014248,2]
[404414159,1770119438414,-6484.12,0.00014248,2]
[404414160,1770119438422,-299.99,0.00014248,2]
[404414161,1770119438432,-181.08010149,0.00014303,2]
[404414162,1770119438440,-2467.88,0.000144,2]
[404414164,1770119438450,-322.6107,0.00014478,2]
[404414165,1770119438461,-209.40437684,0.00014478,2]
[404414167,1770119438471,-1000.0,0.000145,2]
[404414170,1770119438481,-217.15233878,0.00014533,2]
[404414171,1770119438490,-50996.65745629,0.00014576,2]
[404414173,1770119438500,-225.18697532,0.00014588,2]
[404414175,1770119438509,-151.0,0.000146,2]
[404414177,1770119438518,-233.51889341,0.00014643,2]
[404414179,1770119438528,-5147.37,0.00014656,2]
[404414181,1770119438537,-242.15909246,0.00014698,2]
[404414183,1770119438548,-1000.0,0.000147,2]
[404414186,1770119438557,-3211.329,0.000147,2]
[404414188,1770119438568,-277.444,0.000147,2]
[404414189,1770119438577,-151.0,0.00014713,2]
[404414191,1770119438586,-151.0,0.00014713,2]
[404414193,1770119438595,-151.0,0.00014713,2]
[404414196,1770119438604,-151.0,0.00014713,2]
[404414198,1770119438614,-151.0,0.00014713,2]
[404414200,1770119438623,-500.0,0.00014713,2]
[404414201,1770119438633,-151.0,0.00014713,2]
[404414203,1770119438642,-500.0,0.00014713,2]
[404414205,1770119438652,-500.0,0.00014713,2]
[404414207,1770119438661,-151.0,0.00014713,2]
[404414209,1770119438670,-200.0,0.00014713,2]
[404414211,1770119438679,-500.0,0.00014713,2]
[404414213,1770119438689,-500.0,0.00014713,2]
[404414215,1770119438698,-151.0,0.00014713,2]
[404414217,1770119438711,-500.0,0.00014713,2]
[404414219,1770119438720,-500.0,0.00014713,2]
[404414221,1770119438729,-151.0,0.00014713,2]
[404414223,1770119438738,-500.0,0.00014713,2]
[404414225,1770119438749,-500.0,0.00014713,2]
[404414227,1770119438758,-151.0,0.00014713,2]
[404414229,1770119438767,-500.0,0.00014713,2]
[404414231,1770119438776,-500.0,0.00014713,2]
[404414233,1770119438787,-151.0,0.00014713,2]
[404414235,1770119438795,-500.0,0.00014713,2]
[404414237,1770119438804,-500.0,0.00014713,2]
[404414239,1770119438813,-500.0,0.00014713,2]
[404414241,1770119438822,-151.0,0.00014713,2]
[404414243,1770119438830,-500.0,0.00014713,2]
[404414245,1770119438839,-500.0,0.00014713,2]
[404414247,1770119438848,-151.0,0.00014713,2]
[404414249,1770119438857,-500.0,0.00014713,2]
[404414251,1770119438866,-500.0,0.00014713,2]
[404414253,1770119438875,-151.0,0.00014713,2]
[404414255,1770119438884,-500.0,0.00014713,2]
[404414257,1770119438893,-500.0,0.00014713,2]
[404414259,1770119438902,-151.0,0.00014713,2]
[404414260,1770119438911,-151.0,0.00014713,2]
[404414263,1770119438921,-500.0,0.00014713,2]
[404414265,1770119438930,-151.0,0.00014713,2]
[404414267,1770119438941,-500.0,0.00014713,2]
[404414268,1770119438950,-151.0,0.00014713,2]
[404414270,1770119438960,-151.0,0.00014713,2]
[404414272,1770119438970,-151.0,0.00014713,2]
[404414274,1770119438980,-721.12765535,0.00014713,2]
[404414276,1770119438991,-500.0,0.00014713,2]
[404414278,1770119439000,-500.0,0.00014713,2]
[404414280,1770119439010,-500.0,0.00014713,2]
[404414283,1770119439020,-500.0,0.00014713,2]
[404414285,1770119439031,-500.0,0.00014713,2]
[404414287,1770119439040,-500.0,0.00014713,2]
[404414289,1770119439049,-500.0,0.00014713,2]
[404414290,1770119439058,-500.0,0.00014713,2]
[404414293,1770119439068,-151.0,0.00014713,2]
[404414295,1770119439078,-500.0,0.00014713,2]
[404414296,1770119439087,-151.0,0.00014713,2]
[404414298,1770119439096,-500.0,0.00014713,2]
[404414301,1770119439105,-151.0,0.00014713,2]
[404414302,1770119439121,-500.0,0.00014713,2]
[404414304,1770119439131,-151.0,0.00014713,2]
[404414306,1770119439140,-151.0,0.00014713,2]
[404414308,1770119439149,-151.0,0.00014713,2]
[404414311,1770119439160,-151.0,0.00014713,2]
[404414313,1770119439168,-151.0,0.00014713,2]
[404414315,1770119439177,-151.0,0.00014713,2]
[404414317,1770119439187,-151.0,0.00014713,2]
[404414319,1770119439196,-151.0,0.00014713,2]
[404414321,1770119439206,-19170.31,0.00014722,2]
[404414323,1770119439215,-251.11897888,0.00014753,2]
[404414325,1770119439224,-150.02324411,0.00014769,2]
[404414327,1770119439234,-369.98194845,0.00014796,2]
[404414329,1770119439243,-495.7739334,0.00014796,2]
[404414331,1770119439252,-1000.0,0.000148,2]
[404414333,1770119439261,-260.4103811,0.00014808,2]
[404414335,1770119439270,-187.78006525,0.00014851,2]
[404414337,1770119439279,-270.0455652,0.00014863,2]
[404414339,1770119439289,-1000.0,0.000149,2]
[404414341,1770119439298,-280.03725112,0.00014918,2]
[404414343,1770119439307,-216.69,0.00014924,2]
[404414365,1770119439524,-600.0,0.0001496,2]
[404414367,1770119439534,-600.0,0.0001496,2]
[404414369,1770119439543,-600.0,0.0001496,2]
[404414371,1770119439552,-290.39862941,0.00014973,2]
[404414373,1770119439562,-250.0,0.00015,2]
[404414375,1770119439571,-15000.0,0.00015,2]
[404414377,1770119439580,-301.1433787,0.00015028,2]
[404414379,1770119439589,-50996.65745629,0.00015037,2]
[404414381,1770119439599,-200.0,0.00015261,2]
[404414384,1770119439610,-194.72792766,0.00015399,2]
[404414385,1770119439619,-500.0,0.00015479,2]
[404414387,1770119439628,-50996.65745629,0.00015497,2]
[404414389,1770119439637,-160.0,0.00015617,2]
[404414391,1770119439648,-5177.5,0.00015626,2]
[404414393,1770119439657,-250.0,0.00015655,2]
[404414395,1770119439666,-1223.52848545,0.00015778,2]
[404414397,1770119439675,-1100.0,0.00015808,2]
[404414399,1770119439684,-200.0,0.00015809,2]
[404414401,1770119439693,-150.02324411,0.00015838,2]
[404414403,1770119439703,-334.5472959,0.00015847,2]
[404414405,1770119439716,-3400.0,0.000159,5]
[404414407,1770119439725,-201.93286099,0.00015947,2]
[404414409,1770119439734,-50996.65745629,0.00015958,2]
[404414411,1770119439743,-5000.0,0.0001596,2]
[404414413,1770119439753,-10000.0,0.00016,2]
[404414415,1770119439763,-256.701042,0.00016,2]
[404414418,1770119439776,-1000.0,0.00016006,2]
[404414419,1770119439787,-1500.0,0.00016082,2]
[404414422,1770119439799,-1234.19,0.0001611,2]
[404414424,1770119439809,-1234.19,0.0001611,2]
[404414426,1770119439818,-469.67,0.0001611,2]
[404414428,1770119439827,-469.67,0.0001611,2]
[404414430,1770119439836,-469.67,0.0001611,2]
[404414432,1770119439845,-469.67,0.0001611,2]
[404414434,1770119439855,-9999.99,0.00016116,2]
[404414436,1770119439864,-2544.7096,0.00016183,2]
[404414438,1770119439873,-500.0,0.00016277,2]
[404414440,1770119439882,-500.0,0.00016312,2]
[404414442,1770119439891,-150.0,0.00016338,2]
[404414444,1770119439900,-800.0,0.00016356,2]
[404414446,1770119439909,-469.67,0.00016356,2]
[404414448,1770119439919,-469.67,0.00016356,2]
[404414450,1770119439927,-468.83,0.00016356,2]
[404414452,1770119439937,-200.0,0.00016357,2]
[404414454,1770119439946,-5177.5,0.00016407,2]
[404414456,1770119439955,-50996.65745629,0.00016418,2]
[404414458,1770119439965,-151.0,0.00016435,2]
[404414460,1770119439975,-200.0,0.00016438,2]
[404414462,1770119439983,-200.0,0.00016438,3]
[404414464,1770119439992,-200.0,0.00016438,4]
[404414466,1770119440001,-200.0,0.00016438,5]
[404414468,1770119440010,-200.0,0.00016438,6]
[404414470,1770119440019,-200.0,0.00016438,7]
[404414472,1770119440028,-200.0,0.00016438,8]
[404414474,1770119440037,-200.0,0.00016438,9]
[404414476,1770119440046,-200.0,0.00016438,10]
[404414478,1770119440055,-200.0,0.00016438,11]
[404414480,1770119440065,-200.0,0.00016438,12]
[404414482,1770119440074,-200.0,0.00016438,13]
[404414484,1770119440083,-200.0,0.00016438,14]
[404414486,1770119440092,-200.0,0.00016438,15]
[404414488,1770119440102,-200.0,0.00016438,16]
[404414490,1770119440111,-200.0,0.00016438,17]
[404414492,1770119440120,-200.0,0.00016438,18]
[404414494,1770119440129,-200.0,0.00016438,19]
[404414496,1770119440138,-200.0,0.00016438,20]
[404414498,1770119440147,-320.99207191,0.00016438,21]
[404414500,1770119440157,-775.48,0.00016438,2]
[404414502,1770119440166,-1214.3201423,0.00016438,2]
[404414504,1770119440175,-1214.3201423,0.00016438,2]
[404414506,1770119440184,-1214.3201423,0.00016438,2]
[404414508,1770119440194,-1214.3201423,0.00016438,2]
[404414510,1770119440203,-1214.3201423,0.00016438,2]
[404414512,1770119440214,-1214.3201423,0.00016438,2]
[404414514,1770119440223,-1214.3201423,0.00016438,2]
[404414516,1770119440232,-1214.3201423,0.00016438,2]
[404414518,1770119440241,-1214.3201423,0.00016438,2]
[404414520,1770119440250,-1214.3201423,0.00016438,2]
[404414522,1770119440260,-1214.3201423,0.00016438,2]
[404414524,1770119440269,-1214.3201423,0.00016438,2]
[404414526,1770119440278,-1214.3201423,0.00016438,2]
[404414528,1770119440288,-1214.3201423,0.00016438,2]
[404414530,1770119440297,-1214.3201423,0.00016438,2]
[404414532,1770119440306,-1214.3201423,0.00016438,2]
[404414534,1770119440315,-1214.3201423,0.00016438,2]
[404414536,1770119440324,-1214.3201423,0.00016438,2]
[404414538,1770119440333,-1214.3201423,0.00016438,2]
[404414540,1770119440342,-1214.3201423,0.00016438,2]
[404414542,1770119440351,-1214.3201423,0.00016438,2]
[404414544,1770119440360,-1214.3201423,0.00016438,2]
[404414546,1770119440369,-1214.3201423,0.00016438,2]
[404414548,1770119440379,-1214.3201423,0.00016438,2]
[404414550,1770119440388,-1214.3201423,0.00016438,2]
[404414552,1770119440397,-1214.3201423,0.00016438,2]
[404414554,1770119440407,-1214.3201423,0.00016438,2]
[404414556,1770119440416,-1214.3201423,0.00016438,2]
[404414558,1770119440427,-1214.3201423,0.00016438,2]
[404414559,1770119440437,-1214.3201423,0.00016438,2]
[404414562,1770119440447,-1214.3201423,0.00016438,2]
[404414564,1770119440456,-1214.3201423,0.00016438,2]
[404414566,1770119440465,-1214.3201423,0.00016438,2]
[404414568,1770119440474,-1214.3201423,0.00016438,2]
[404414570,1770119440483,-1214.3201423,0.00016438,2]
[404414572,1770119440493,-1214.3201423,0.00016438,2]
[404414574,1770119440502,-1214.3201423,0.00016438,2]
[404414576,1770119440511,-1214.3201423,0.00016438,2]
[404414578,1770119440521,-1214.3201423,0.00016438,2]
[404414580,1770119440531,-1214.3201423,0.00016438,2]
[404414582,1770119440541,-1214.3201423,0.00016438,2]
[404414584,1770119440550,-1214.3201423,0.00016438,2]
[404414586,1770119440559,-1214.3201423,0.00016438,2]
[404414588,1770119440568,-1214.3201423,0.00016438,2]
[404414590,1770119440578,-1214.3201423,0.00016438,2]
[404414591,1770119440587,-1214.3201423,0.00016438,2]
[404414592,1770119440596,-1214.3201423,0.00016438,2]
[404414593,1770119440605,-1214.3201423,0.00016438,2]
[404414594,1770119440615,-1214.3201423,0.00016438,2]
[404414595,1770119440624,-1214.3201423,0.00016438,2]
[404414596,1770119440633,-1214.3201423,0.00016438,2]
[404414597,1770119440642,-1214.3201423,0.00016438,2]
[404414598,1770119440651,-1214.3201423,0.00016438,2]
[404414600,1770119440660,-1214.3201423,0.00016438,2]
[404414602,1770119440670,-1214.3201423,0.00016438,2]
[404414604,1770119440679,-1214.3201423,0.00016438,2]
[404414606,1770119440688,-1214.3201423,0.00016438,2]
[404414608,1770119440697,-1214.3201423,0.00016438,2]
[404414610,1770119440708,-1214.3201423,0.00016438,2]
[404414612,1770119440719,-1214.3201423,0.00016438,2]
[404414614,1770119440729,-1214.3201423,0.00016438,2]
[404414616,1770119440737,-1214.3201423,0.00016438,2]
[404414619,1770119440749,-1214.3201423,0.00016438,2]
[404414620,1770119440758,-1214.3201423,0.00016438,2]
[404414623,1770119440767,-1214.3201423,0.00016438,2]
[404414625,1770119440776,-1214.3201423,0.00016438,2]
[404414626,1770119440787,-1214.3201423,0.00016438,2]
[404414628,1770119440796,-1214.3201423,0.00016438,2]
[404414631,1770119440805,-1214.3201423,0.00016438,2]
[404414633,1770119440815,-1214.3201423,0.00016438,2]
[404414635,1770119440826,-1214.3201423,0.00016438,2]
[404414637,1770119440837,-6351.68662534,0.00016438,2]
[404414639,1770119440847,-6351.68662534,0.00016438,2]
[404414641,1770119440856,-6351.68662534,0.00016438,2]
[404414643,1770119440865,-6351.68662534,0.00016438,2]
[404414645,1770119440874,-6351.68662534,0.00016438,2]
[404414647,1770119440887,-6351.68662534,0.00016438,2]
[404414649,1770119440896,-6351.68662534,0.00016438,2]
[404414651,1770119440904,-6351.68662534,0.00016438,2]
[404414653,1770119440913,-6351.68662534,0.00016438,2]
[404414655,1770119440923,-6351.68662534,0.00016438,2]
[404414657,1770119440932,-6351.68662534,0.00016438,2]
[404414659,1770119440941,-6351.68662534,0.00016438,2]
[404414661,1770119440951,-6351.68662534,0.00016438,2]
[404414663,1770119440961,-6351.68662534,0.00016438,2]
[404414665,1770119440970,-6351.68662534,0.00016438,2]
[404414667,1770119440980,-6351.68662534,0.00016438,2]
[404414669,1770119440990,-6351.68662534,0.00016438,2]
[404414671,1770119440999,-6351.68662525,0.00016438,2]
[404414673,1770119441009,-200.0,0.00016438,2]
[404414675,1770119441018,-800.0,0.00016438,2]
[404414677,1770119441027,-599.60298507,0.00016494,2]
[404414679,1770119441036,-209.40437684,0.00016495,2]
[404414681,1770119441047,-10000.0,0.000165,2]
[404414683,1770119441056,-16623.0,0.000165,2]
[404414685,1770119441065,-2152.03,0.00016503,2]
[404414688,1770119441074,-1233.94,0.00016503,2]
[404414690,1770119441083,-30000.0,0.00016558,2]
[404414692,1770119441094,-1500.0,0.000168,2]
[404414694,1770119441106,-205.2,0.00016862,2]
[404414696,1770119441117,-50996.65745629,0.00016879,2]
[404414697,1770119441127,-254.0,0.00016901,2]
[404414700,1770119441137,-200.0,0.00016905,2]
[404414702,1770119441147,-150.02324411,0.00016907,2]
[404414704,1770119441157,-165.02707697,0.00017,10]
[404414706,1770119441166,-10000.0,0.00017,2]
[404414708,1770119441175,-300.0,0.00017,2]
[404414710,1770119441184,-500.0,0.00017,7]
[404414712,1770119441193,-500.0,0.00017,7]
[404414714,1770119441202,-500.0,0.00017,7]
[404414716,1770119441213,-500.0,0.00017,7]
[404414718,1770119441222,-500.0,0.00017,7]
[404414720,1770119441231,-500.0,0.00017,7]
[404414722,1770119441240,-500.0,0.00017,7]
[404414724,1770119441249,-500.0,0.00017,7]
[404414726,1770119441258,-500.0,0.00017,7]
[404414728,1770119441268,-500.0,0.00017,7]
[404414730,1770119441277,-500.0,0.00017,7]
[404414732,1770119441286,-500.0,0.00017,7]
[404414734,1770119441295,-500.0,0.00017,7]
[404414736,1770119441307,-500.0,0.00017,7]
[404414738,1770119441317,-500.0,0.00017,7]
[404414740,1770119441327,-500.0,0.00017,7]
[404414742,1770119441335,-500.0,0.00017,7]
[404414745,1770119441350,-500.0,0.00017,7]
[404414747,1770119441359,-500.0,0.00017,7]
[404414749,1770119441369,-500.0,0.00017,7]
[404414751,1770119441378,-500.0,0.00017,7]
[404414753,1770119441388,-500.0,0.00017,7]
[404414755,1770119441397,-500.0,0.00017,7]
[404414757,1770119441406,-500.0,0.00017,7]
[404414759,1770119441416,-500.0,0.00017,7]
[404414761,1770119441425,-500.0,0.00017,7]
[404414763,1770119441435,-500.0,0.00017,7]
[404414765,1770119441444,-500.0,0.00017,7]
[404414767,1770119441453,-500.0,0.00017,7]
[404414770,1770119441463,-500.0,0.00017,7]
[404414772,1770119441473,-500.0,0.00017,7]
[404414774,1770119441482,-500.0,0.00017,7]
[404414776,1770119441491,-500.0,0.00017,7]
[404414778,1770119441500,-500.0,0.00017,7]
[404414780,1770119441509,-500.0,0.00017,7]
[404414782,1770119441519,-500.0,0.00017,7]
[404414784,1770119441529,-500.0,0.00017,7]
[404414786,1770119441542,-500.0,0.00017,7]
[404414788,1770119441552,-500.0,0.00017,7]
[404414790,1770119441562,-500.0,0.00017,7]
[404414792,1770119441571,-500.0,0.00017,7]
[404414795,1770119441581,-500.0,0.00017,7]
[404414797,1770119441591,-500.0,0.00017,7]
[404414799,1770119441601,-500.0,0.00017,7]
[404414801,1770119441611,-500.0,0.00017,7]
[404414803,1770119441620,-500.0,0.00017,7]
[404414805,1770119441630,-500.0,0.00017,7]
[404414807,1770119441640,-500.0,0.00017,7]
[404414809,1770119441650,-500.0,0.00017,7]
[404414811,1770119441659,-500.0,0.00017,7]
[404414813,1770119441669,-500.0,0.00017,7]
[404414815,1770119441678,-500.0,0.00017,7]
[404414817,1770119441688,-500.0,0.00017,7]
[404414819,1770119441698,-500.0,0.00017,7]
[404414821,1770119441710,-500.0,0.00017,7]
[404414823,1770119441721,-500.0,0.00017,7]
[404414825,1770119441730,-500.0,0.00017,7]
[404414828,1770119441744,-500.0,0.00017,7]
[404414830,1770119441754,-500.0,0.00017,7]
[404414832,1770119441764,-500.0,0.00017,7]
[404414834,1770119441774,-500.0,0.00017,7]
[404414836,1770119441783,-500.0,0.00017,7]
[404414838,1770119441794,-500.0,0.00017,7]
[404414840,1770119441804,-500.0,0.00017,7]
[404414843,1770119441814,-500.0,0.00017,7]
[404414845,1770119441823,-500.0,0.00017,7]
[404414847,1770119441833,-500.0,0.00017,7]
[404414849,1770119441842,-500.0,0.00017,7]
[404414851,1770119441851,-500.0,0.00017,7]
[404414853,1770119441863,-500.0,0.00017,7]
[404414855,1770119441872,-500.0,0.00017,7]
[404414866,1770119441974,-500.0,0.00017,7]
[404414868,1770119441995,-500.0,0.00017,7]
[404414870,1770119442006,-500.0,0.00017,7]
[404414872,1770119442016,-500.0,0.00017,7]
[404414873,1770119442027,-500.0,0.00017,7]
[404414874,1770119442037,-500.0,0.00017,7]
[404414875,1770119442048,-500.0,0.00017,7]
[404414876,1770119442058,-500.0,0.00017,7]
[404414877,1770119442068,-500.0,0.00017,7]
[404414878,1770119442078,-500.0,0.00017,7]
[404414879,1770119442088,-500.0,0.00017,7]
[404414880,1770119442097,-500.0,0.00017,7]
[404414881,1770119442106,-500.0,0.00017,7]
[404414882,1770119442115,-166.51,0.00017,7]
[404414883,1770119442127,-500.0,0.00017,7]
[404414884,1770119442136,-500.0,0.00017,7]
[404414885,1770119442146,-500.0,0.00017,7]
[404414886,1770119442156,-500.0,0.00017,7]
[404414887,1770119442165,-500.0,0.00017,7]
[404414888,1770119442174,-500.0,0.00017,7]
[404414889,1770119442183,-500.0,0.00017,7]
[404414890,1770119442191,-500.0,0.00017,7]
[404414891,1770119442200,-500.0,0.00017,7]
[404414892,1770119442210,-500.0,0.00017,7]
[404414893,1770119442220,-500.0,0.00017,7]
[404414894,1770119442230,-500.0,0.00017,7]
[404414895,1770119442239,-500.0,0.00017,7]
[404414896,1770119442248,-500.0,0.00017,7]
[404414897,1770119442257,-500.0,0.00017,7]
[404414898,1770119442266,-500.0,0.00017,7]
[404414899,1770119442275,-404.8,0.00017,7]
[404414900,1770119442284,-160.0,0.00017,7]
[404414901,1770119442293,-500.0,0.00017,7]
[404414902,1770119442302,-500.0,0.00017,7]
[404414903,1770119442311,-500.0,0.00017,7]
[404414904,1770119442323,-217.15233878,0.00017043,2]
[404414905,1770119442332,-500.0,0.00017084,2]
[404414906,1770119442341,-6000.0,0.000171,2]
[404414907,1770119442350,-10000.0,0.00017173,2]
[404414908,1770119442359,-1100.0,0.00017178,7]
[404414909,1770119442369,-5177.5,0.00017189,2]
[404414910,1770119442378,-6000.0,0.000172,2]
[404414911,1770119442386,-160.0,0.000172,7]